Cogmind - Beta 16 @@@ ROGUE MODE // 2025.11.03 @ 05:22:28 Player: Demo Result: Destroyed by Y-45 Defender with Heavy Assault Rifle Performance ------------- Evolutions (1) 500 Regions Visited (3) 600 Robots Destroyed (2) 10 Value Destroyed (13) 13 Prototype IDs (1) 20 Alien Tech Used (0) 0 Bonus (224) 224 TOTAL SCORE: 1367 Bonus ------- Follower Combat Kills 224 Cogmind --------- Core Integrity 0/400 Matter 300/300 Energy 71/100 System Corruption 0% Temperature Cool (0) Movement Core (50) Location -9/Storage Parts ------- > --- POWER (1) -------- (None) > --- PROPULSION (2) --- (None) > --- UTILITY (2) ------ (None) > --- WEAPON (4) ------- (None) > --- INVENTORY (5) ---- Compact Wheel Compact Wheel Large Storage Unit Improved EM Shotgun Datajack Peak State ------------ > --- POWER ------------ (None) > --- PROPULSION ------- Wheel Wheel > --- UTILITY ---------- (None) > --- WEAPON ----------- Improved EM Shotgun Small Laser Assault Rifle > --- INVENTORY -------- Wheel Compact Wheel Compact Wheel Datajack [Rating: 7] Favorites ----------- Power None Propulsion Wheel Wheel Wheel Flight Unit Flight Unit Utility Light Armor Plating Device Drone Bay Protection Light Armor Plating Weapon Small Laser Energy Gun Small Laser Ballistic Gun Assault Rifle Special Melee Weapon Datajack Build | -11 -10 -9 -9 ------- Run | Yrd Mat Mat Sto Slots Evolved 2 | . . 2 . Power . | . . . . Propulsion . | . . . . Utility . | . . . . Weapon 2 | . . 2 . Parts Attached 12 | 5 . 1 6 Power . | . . . . Engine . | . . . . Core . | . . . . Reactor . | . . . . Propulsion 5 | 3 . . 2 Treads . | . . . . Leg . | . . . . Wheel 4 | 3 . . 1 Hover . | . . . . Flight 1 | . . . 1 Utility 2 | . . . 2 Device 1 | . . . 1 Storage . | . . . . Processor . | . . . . Hackware . | . . . . Protection 1 | . . . 1 Artifact . | . . . . Weapon 5 | 2 . 1 2 Energy Gun 3 | 1 . 1 1 Energy Cannon . | . . . . Ballistic Gun 1 | 1 . . . Ballistic Cannon . | . . . . Launcher . | . . . . Special Weapon . | . . . . Impact Weapon . | . . . . Slashing Weapon . | . . . . Piercing Weapon . | . . . . Special Melee Weapon 1 | . . . 1 Unidentified Prototypes 1 | . . 1 . Parts Lost 5 | . . 3 2 Power . | . . . . Propulsion 3 | . . 2 1 Utility 1 | . . . 1 Weapon 1 | . . 1 . Highest Loss Streak 3 | . . 3 2 To Critical Strikes . | . . . . Average Backups 3 | . 3 4 4 Power . | . . . . Propulsion 2 | . 3 3 2 Utility . | . . . . Weapon . | . . . . Tool/Special . | . . . . Unused Backups 2 | . . . 2 Power . | . . . . Propulsion 1 | . . . 1 Utility 1 | . . . 1 Weapon . | . . . . Tool/Special . | . . . . Average Slot Usage (%) 21 | . 57 33 13 Wheel 5 | . 28 15 . Flight 5 | . . . 7 Protection 4 | . . . 5 Energy Gun 3 | . 14 13 . Ballistic Gun 2 | . 14 4 . Peak Build Rating 7 | 4 4 7 6 Average Rating 2 | 3 4 3 1 On Entrance 2 | . 4 4 . Avg Prop Armor Cover (%) 15 | 18 16 15 . Naked Turns 66 | . . 7 59 Heaviest Build 6 | 3 3 3 6 Greatest Support 32 | 26 20 3 32 Greatest Overweight (x) 1 | . . . 1 Average Overweight (x) . | . . . . Largest Inventory Capacity 5 | 5 5 5 5 Average Capacity 5 | 5 5 5 5 Most Carried 5 | 3 3 5 5 Average Carried 4 | . 3 4 4 Final Capacity 5 | 5 5 5 5 Final Carried 5 | 3 3 5 5 Class Distribution -------------------- 56% | Mutant 43% | Commander-Mutant Dominant Class ---------------- Mutant | -10/Materials Mutant | -9/Materials Commander-Mutant | -9/Storage Resources | -11 -10 -9 -9 ----------- Run | Yrd Mat Mat Sto Matter Collected 325 | 229 . . 96 Remotely . | . . . . Salvage Created 110 | 110 . . . Parts 6 | 6 . . . Haulers Intercepted . | . . . . Recyclers Shooed . | . . . . Parts Field Recycled . | . . . . Retrieved Matter . | . . . . Parts Self-Destructed . | . . . . Prevented . | . . . . Parts Restored . | . . . . Kills | -11 -10 -9 -9 ------- Run | Yrd Mat Mat Sto Combat Hostiles Destroyed . | . . . . Classes Destroyed 2 | 2 . . . Tunneler 1 | 1 . . . Recycler 1 | 1 . . . Best Kill Streak 2 | 2 . . . Combat Bots Only . | . . . . Max Kills in Single Turn 1 | 1 . . . Gunslinging . | . . . . Exploded . | . . . . Melee . | . . . . Uniques/NPCs Destroyed . | . . . . Combat | -11 -10 -9 -9 -------- Run | Yrd Mat Mat Sto Hostile Shots Fired 112 | . 21 40 51 Missed 47 | . 10 13 24 Hits 65 | . 11 27 27 Melee 1 | . . . 1 Projectile 64 | . 11 27 26 Critical Strikes 2 | . . 2 . Damage Taken 772 | . 140 292 340 Core 442 | . 32 173 237 Absorbed by Shields . | . . . . Core Remaining (%) 93 | 100 87 . . Volleys Fired 7 | 7 . . . Largest 2 | 2 . . . Hottest 60 | 60 . . . Shots Fired 14 | 14 . . . Gun 14 | 14 . . . Cannon . | . . . . Launcher . | . . . . Special . | . . . . Kinetic 7 | 7 . . . Thermal 7 | 7 . . . Explosive . | . . . . Electromagnetic . | . . . . Robot Hit Streak 5 | 5 . . . Robot Miss Streak 1 | 1 . . . Penetration Max . | . . . . Secondary Targets . | . . . . Shots Hit Robots 11 | 9 . . 2 Core Hits 3 | 3 . . . Critical Kills . | . . . . Critical Parts Destroyed . | . . . . Critical Strikes . | . . . . Melee Attacks 2 | . . . 2 Impact . | . . . . Slashing . | . . . . Piercing . | . . . . Sneak Attacks 2 | . . . 2 Combat Hostiles . | . . . . Follow-up Attacks . | . . . . Damage Inflicted 134 | 110 14 10 . Guns 110 | 110 . . . Cannons . | . . . . Explosions . | . . . . Melee . | . . . . Ramming 24 | . 14 10 . Kinetic 66 | 66 . . . Thermal 44 | 44 . . . Explosive . | . . . . Electromagnetic . | . . . . Impact . | . . . . Slashing . | . . . . Piercing . | . . . . Highest Corruption . | . . . . Average Corruption . | . . . . Corruption Purged . | . . . . Corruption Blocked . | . . . . Overload Shots . | . . . . Overflow Damage . | . . . . Projectiles . | . . . . Explosions . | . . . . Melee . | . . . . Knockbacks . | . . . . Impact . | . . . . Kinetic . | . . . . Secondary . | . . . . Self-Inflicted Damage 11 | . 6 5 . Shots . | . . . . Rammed 3 | . 2 1 . Targets Rammed 3 | . 2 1 . Kicked . | . . . . Crushed . | . . . . Highest Temperature . | . . . . Average Temperature . | . . . . Received Heat Transfer 234 | . 75 90 69 Siege Activations . | . . . . Martial Activations . | . . . . Shielding Activations . | . . . . Robots Disrupted . | . . . . Combat Hostiles . | . . . . Robots Corrupted . | . . . . Combat Hostiles . | . . . . Parts Fried . | . . . . Impact Corruptions . | . . . . Robots Melted . | . . . . Combat Hostiles . | . . . . Parts Melted . | . . . . Heat Transferred 100 | 100 . . . Parts Sabotaged . | . . . . Parts Stolen . | . . . . Parts Stripped . | . . . . Power Chain Reactions . | . . . . Alert | -11 -10 -9 -9 ------- Run | Yrd Mat Mat Sto Maximum Alert Level . | . . . . Low Security (%) 100 | 100 100 100 100 Level 1 . | . . . . Level 2 . | . . . . Level 3 . | . . . . Level 4 . | . . . . Level 5 . | . . . . High Security . | . . . . Max Security . | . . . . Peak Influence 192 | 5 . . 192 Initial . | . . . . Average 66 | . . . 101 Influence Increases 459 | 10 . . 449 Destroy 0b10 Robot/C 180 | . . . 180 Destroy 0b10 Robot/NC 20 | 10 . . 10 Destroy Leader 50 | . . . 50 Allied During Kill 56 | . . . 56 Successful Hack 2 | . . . 2 Destroy Structure 1 | . . . 1 Partial Spotted 75 | . . . 75 Lose Combat Pursuer 75 | . . . 75 Influence Decreases 307 | 10 . . 297 Time Decay 120 | 10 . . 110 Lost Part 20 | . . . 20 Lost Ally 167 | . . . 167 Squads Dispatched 5 | . 2 1 2 Investigation 1 | . 1 . . Extermination . | . . . . Reinforcement 3 | . 1 1 1 Assault . | . . . . Garrison 1 | . . . 1 Intercept . | . . . . Searches Triggered . | . . . . Construction Impeded . | . . . . Haulers Reinforced . | . . . . Active Scanning Responses . | . . . . Cargo Convoy Interrupts . | . . . . Stealth | -11 -10 -9 -9 --------- Run | Yrd Mat Mat Sto Distress Signals . | . . . . Communications Jammed . | . . . . Distress Signals . | . . . . Times Spotted 39 | . 8 7 24 Peak Tracking Total 8 | . 8 8 8 Tactical Retreats 2 | . . . 2 Traps | -11 -10 -9 -9 ------- Run | Yrd Mat Mat Sto Traps Triggered 1 | . . . 1 Indirectly . | . . . . Trap Hack Attempts . | . . . . Triggered . | . . . . Disarmed . | . . . . Reprogrammed . | . . . . Reused . | . . . . Traps Extracted . | . . . . Installed . | . . . . Triggered . | . . . . Machines | -11 -10 -9 -9 ---------- Run | Yrd Mat Mat Sto Machines Disabled . | . . . . Max in Single Turn . | . . . . Machines Repaired . | . . . . Machines Dismantled . | . . . . Machines Sabotaged . | . . . . Overloaded Fab Kills . | . . . . Hacking | -11 -10 -9 -9 --------- Run | Yrd Mat Mat Sto Machines Accessed 1 | . . . 1 Terminals 1 | . . . 1 Fabricators . | . . . . Repair Stations . | . . . . Recycling Units . | . . . . Scanalyzers . | . . . . Garrison Access . | . . . . Total Hacks 1 | . . . 1 Successful 1 | . . . 1 Failed . | . . . . Catastrophic . | . . . . Database Lockouts . | . . . . Manual . | . . . . Terminals 1 | . . . 1 Fabricators . | . . . . Repair Stations . | . . . . Recycling Units . | . . . . Scanalyzers . | . . . . Garrison Access . | . . . . Terminal Hacks 1 | . . . 1 Open Door 1 | . . . 1 Fabricator Hacks . | . . . . Repair Station Hacks . | . . . . Recycling Unit Hacks . | . . . . Scanalyzer . | . . . . Garrison Access Hacks . | . . . . Unauthorized Hacks . | . . . . Terminals . | . . . . Fabricators . | . . . . Repair Stations . | . . . . Recycling Units . | . . . . Scanalyzers . | . . . . Garrison Access . | . . . . Data Cores Recovered . | . . . . Used . | . . . . Hacking Detections . | . . . . Full Trace Events . | . . . . Feedback Events . | . . . . Feedback Blocked . | . . . . Robot Schematics Acquired . | . . . . Robots Built . | . . . . Authchips . | . . . . Time . | . . . . Total Robot Build Rating . | . . . . Part Schematics Acquired . | . . . . Parts Built . | . . . . Authchips . | . . . . Time . | . . . . Total Part Build Rating . | . . . . Part Studies Acquired . | . . . . Parts Repaired . | . . . . Time . | . . . . Parts Recycled . | . . . . Recycled Matter . | . . . . Retrieved Matter . | . . . . Retrieved Components . | . . . . Parts Scanalyzed . | . . . . Part Schematics Acquired . | . . . . Parts Damaged . | . . . . Bothacking | -11 -10 -9 -9 ------------ Run | Yrd Mat Mat Sto Used RIF Installer . | . . . . Robots Hacked . | . . . . Non-combat . | . . . . Combat . | . . . . Robot Hacks Applied . | . . . . Relay Couplers Released . | . . . . Fabnet Peak Effective % . | . . . . Robots Rewired . | . . . . Allies Hacked . | . . . . Hacks Repelled . | . . . . Allies | -11 -10 -9 -9 -------- Run | Yrd Mat Mat Sto Total Allies 10 | . . . 10 Largest Group 10 | . . . 10 Highest-Rated Group 88 | . . . 88 Highest-Rated Ally 16 | . . . 16 Total Orders . | . . . . Ally Attacks 86 | . . . 86 Total Damage 779 | . . . 779 Kills 11 | . . . 11 Allies Corrupted . | . . . . Allies Melted . | . . . . Intel | -11 -10 -9 -9 ------- Run | Yrd Mat Mat Sto Active Infowar (turns) . | . . . . Robot Analysis Total . | . . . . Derelict Logs Recovered . | . . . . Drone Launches 2 | . . . 2 Drone Recoveries . | . . . . Exploration | -11 -10 -9 -9 ------------- Run | Yrd Mat Mat Sto Turns Passed 418 | 60 39 47 272 Spaces Moved 607 | 36 72 84 415 Core 278 | 8 68 84 118 Treads . | . . . . Legs . | . . . . Wheels 33 | 28 4 . 1 Hover . | . . . . Flight 296 | . . . 296 Fastest Speed 40 | 50 50 50 40 Average Speed 47 | 80 51 50 43 Slowest Speed 100 | 90 80 50 100 Overloaded Moves . | . . . . Propulsion Burnouts . | . . . . Robots Hopped 8 | . . . 8 Potential Cave-ins . | . . . . Cave-ins Triggered . | . . . . Exploration Rate (%) 31 | 4 29 23 69 Regions Visited 3 Branch Regions 1 Pre-discovered Areas . | . . . . Known Exits Taken . | . . . . Unknown Exits Taken 3 | 1 1 1 . Scrap Searched . | . . . . Spaces Dug . | . . . . Terrain Destroyed . | . . . . Melee . | . . . . Projectile . | . . . . AOE . | . . . . Terrain Rammed . | . . . . Walls Destroyed . | . . . . Machines Disabled . | . . . . Actions | -11 -10 -9 -9 --------- Run | Yrd Mat Mat Sto Total 712 | 50 73 89 500 Wait 58 | . . . 58 Move 590 | 35 71 84 400 Hop 7 | . . . 7 Pick Up 6 | 3 . 2 1 Fast Attach 8 | 4 . 1 3 Attach 4 | . . . 4 Detach 4 | . . . 4 Swap 1 | 1 . . . Drop 4 | . . 2 2 Fire 7 | 7 . . . Melee 2 | . . . 2 Ram 2 | . 2 . . Kick . | . . . . Crush . | . . . . Escape Stasis 15 | . . . 15 Rewire 3 | . . . 3 Trap . | . . . . Miscellaneous 1 | . . . 1 Route ------- -11/Scrapyard -10/Materials -9/Materials -9/Storage (discovered 1 exit: [*Mat]) History --------- Turn | Location | Event 38 | -11/Scrapyard | Discovered new exit (range 16) 61 | -11/Scrapyard | Entered Materials 92 | -10/Materials | Discovered new exit (range 16) 100 | -10/Materials | Entered another Materials area 100 | -9/Materials | Evolved 2 slots: Weapon x2 140 | -9/Materials | Discovered new exit (range 15) 147 | -9/Materials | Entered Storage 171 | -9/Storage | Lost 3 parts (2n1w) 178 | -9/Storage | Core integrity fell below 50% 207 | -9/Storage | Core integrity fell below 20% 226 | -9/Storage | Assisted by bots powering up and referring to "LRC-V3" 243 | -9/Storage | Discovered new exit (range 16) 353 | -9/Storage | Garrison activated, responded to threat 362 | -9/Storage | Lost 5 allies 419 | -9/Storage | Destroyed by Y-45 Defender with Heavy Assault Rifle Last Messages --------------- 00258_ Acquired 37 matter. 00301_ Trooper 2a destroyed. 00305_ Mercenary 2c suffers critical hit (Burn). 00305_ Mercenary 2c destroyed. 00335_ K-01 Serf collects debris. 00349_ Dropped Wheel. 00350_ Acquired Lrg. Storage Unit. 00353_ W-16 Scout calls for garrison support. 00353_ ALERT: Activating Garrison Access S001. 00375_ K-01 Serf collects debris. 00381_ Flight Unit destroyed. 00382_ ALERT: Hostiles spotted, dispatching reinforcements to Terminal S004. 00398_ Mercenary 2e destroyed. 00407_ K-01 Serf collects debris. 00408_ K-01 Serf destroyed. 00408_ Mercenary 2h destroyed. 00408_ Acquired 30 matter. 00409_ Lgt. Armor Plating destroyed. 00412_ G-34 Mercenary destroyed. Map ----- +----------------------------------------------------+ | ?????????????????????????????????????????????????? | | ?????????????????????????????????????????????????? | | ?????????????????????????????????????????????????? | | ?????????????????????????????????????????????????? | | ?????????????????????????????????????????????????? | | ?????????????????????????????????????????????????? | | ?????????????????????????????????????????????????? | | ????????????????????????????????????????????###??? | | ????????????????????????????????????????????# ###? | | ?????????????????????????????????????????#### | | ?????????????????????????????????????????#""" """" | | ??????????????????????????????????????????"G """" | | ??????????????????????????????##+#####?????"" """" | | ??????????????????????????????# #??????# """" | | ?????????????????????????????## #####??# | | ?????????????????????????????? # """?#/##+# | | ??????????????????????????????# + "T"?# # | | ??????????????????????????????# # # # | | ??????????????????????????????# #! # # | | ??????????????????????????????# # + # | | ??????????????????????????????# # # #### | | ??????????????????????????????# ######## #??? | | ??????????? #####+##+######## Y #??? | | ??????????# a a Y#######+##?? | | ??????????+ + !%*#?? | | ??????????# @ ##### """%= #?? | | ???????????????#################+##???# """![ ### | | ???????????????# #?????? ????# """ ""# | | ???????????????# #??????= ????# """ T"# | | ########???????# """ #????? ???# """=%[""# | | # #???????# """ #????? ???# =%!### | | # #???????# """ #???? ??# % %*=[#?? | | # #???????# #???? ??# [ !### | | # ############+##+###################+##### | | =# """ # | | ## """ + | | ?# """ # | | ## ###############+#########+###############%* | | # """ #???????????????????# #?##########= | | # """ #???????????????????# #?# #* | | # """ #???????????????????# = = #?# #* | | # #???????????????????# #?# """" #% | | #?#############???????????# ] #?# ""??"=/% | | #? #???????????# #?# ""???" #= | | # #???????????# #?# "???"" # | | # #???????????# #?# "??"" # | | + #???????????###+#######?# """" # | | # #?????????????# ????????# # | | # #?????????????# ????????###+###### | | #?#############?????????????# ??????????# #????# | +----------------------------------------------------+ Best States ------------- Heat Dissipation 28 Energy Generation 5 Energy Capacity 100 Matter Stores 300 Matter Capacity 300 Sight Range 16 Terrain Scan Density 10 Armor Coverage 150 Evasion (%) 62 Item Schematics ----------------- None Robot Schematics ------------------ None Fabricated ------------ Nothing Repaired ---------- Nothing Studied --------- None Alien Tech Used ----------------- None Achievements -------------- None Challenges ------------ None Game ------ Seed WarlordExoskeletonKatana Manual? 0 Play Time 00:06:34 Cumulative 358.0 hours Start 2025.11.03 @ 05:18:31 End 2025.11.03 @ 05:22:28 Sessions 1 Manual Loads 0 Difficulty Rogue Special Mode None Game No. 313 Rogue 313 Adventurer 0 Explorer 0 Win Type - Total 2 Types 1/1/0/0/0/0/0/0/0/0 Lore% 82 Gallery% 82 Achievement% 58 Wizard Run 0 Options --------- Layout 1 ASCII 0 Keyboard 0 Movement Numpad Keybinds 0 Fullscreen 1 Font 24/Smallcaps Map View 50x35 Zoom Use 0% Tactical HUD 1 Map Filters NONE Filters NONE Steam 1 RUN: 0f23888b-bd87-4db9-a481-76bf68f27822